bitfinex-derivatives/quotes_ETHF0:USTF0_20250902
["timestamp","ask_amount","ask_price","bid_price","bid_amount"]
[1756776978154,0.1148,4299.5,4298.7,3.04121292]
[1756776978650,0.2986,4299.4,4298.7,3.04121292]
[1756776978852,0.1148,4299.5,4298.7,3.04121292]
[1756776979849,0.2986,4299.4,4298.7,3.04121292]
[1756776980054,0.4891,4299.4,4298.7,3.04121292]
[1756776980249,0.4891,4298.8,4298.7,2.80021292]
[1756776980551,0.6866,4298.8,4298.7,3.04121292]
[1756776981152,0.4891,4298.8,4298.7,3.04121292]
[1756776982055,0.2986,4299.4,4298.7,3.04121292]
[1756776982657,0.1148,4299.5,4298.7,3.04121292]
[1756776982855,0.4891,4299.4,4298.7,3.04121292]
[1756776983052,0.4891,4299.3,4298.7,3.04121292]
[1756776985058,0.2986,4299.3,4299.2,2.80021292]
[1756776985355,0.1166,4300.5,4299.2,3.04121292]
[1756776985356,0.2986,4299.8,4299.2,3.04121292]
[1756776985561,0.4891,4299.8,4299.2,3.04121292]
[1756776985855,0.2986,4299.7,4299.3,40.8]
[1756776986055,0.1166,4300.0,4299.4,0.241]
[1756776986246,0.3071,4300.0,4299.4,0.241]
[1756776986449,0.2986,4299.8,4299.7,2.80021292]
[1756776986650,0.2986,4299.8,4299.7,3.04121292]
[1756776987452,0.4891,4300.4,4299.7,3.04121292]
[1756776987662,0.4891,4300.4,4299.7,0.241]
[1756776987865,0.2986,4300.3,4300.2,2.80021292]
[1756776988159,0.2986,4300.3,4300.2,3.04121292]
[1756776988761,0.2986,4300.9,4300.2,3.27375292]
[1756776988962,0.1166,4301.0,4300.7,2.80021292]
[1756776988963,0.2986,4301.0,4300.7,2.80021292]
[1756776989162,0.2986,4300.9,4300.8,0.241]
[1756776989463,3.2078,4301.2,4300.8,0.241]
[1756776989764,0.4891,4301.4,4300.8,0.241]
[1756776990656,0.4891,4301.4,4301.2,2.80021292]
[1756776990657,0.1905,4301.4,4301.2,2.80021292]
[1756776990853,0.6866,4301.4,4301.3,0.241]
[1756776991056,0.388,4300.9,4300.8,2.80021292]
[1756776991256,0.6866,4300.9,4300.8,3.04121292]
[1756776992363,0.6866,4300.9,4300.8,2.80021292]
[1756776992560,0.6866,4300.9,4300.6,3.2078]
[1756776992759,0.388,4300.8,4300.6,3.2078]
[1756776992964,0.6866,4300.7,4300.6,3.2078]
[1756776993162,0.6866,4300.7,4300.6,3.4488]
[1756776996068,0.4891,4300.7,4300.6,3.4488]
[1756776996256,0.2986,4300.7,4300.6,3.4488]
[1756776996462,0.6866,4300.7,4300.6,3.4488]
[1756776996662,0.2986,4300.7,4300.6,3.4488]
[1756776996963,0.2986,4301.8,4300.6,7.68132]
[1756776997164,0.1905,4301.9,4301.6,2.80021292]
[1756776997364,0.4891,4301.8,4301.7,0.241]
[1756776998061,0.2986,4301.8,4301.7,0.241]
[1756776998260,0.4891,4301.8,4301.7,0.241]
[1756776998966,3.2078,4302.0,4301.7,0.241]
[1756776999371,0.2986,4301.9,4301.7,0.241]
[1756776999974,0.1905,4301.9,4301.7,0.241]
[1756777000168,0.2986,4301.8,4301.7,0.241]
[1756777000761,0.4891,4301.8,4301.7,0.241]
[1756777000963,0.2986,4301.9,4301.5,40.8]
[1756777001162,3.3244,4302.0,4301.5,40.8]
[1756777001163,0.6971,4301.6,4301.5,40.8]
[1756777001363,0.6971,4301.6,4301.5,41.041]
[1756777002059,0.6971,4301.6,4301.5,0.241]
[1756777002258,0.8298,4301.5,4301.4,3.2078]
[1756777002462,0.8298,4301.5,4301.4,44.2488]
[1756777003666,0.8298,4301.5,4301.4,44.0078]
[1756777003870,0.8298,4301.5,4301.4,44.2488]
[1756777004759,0.8298,4301.5,4301.4,3.4488]
[1756777005368,0.5266,4301.5,4301.3,40.8]
[1756777005565,0.5093,4301.0,4300.9,6.00801292]
[1756777005765,0.8298,4301.0,4300.8,33.496]
[1756777006064,0.3032,4300.9,4300.8,33.496]
[1756777006669,0.3032,4300.9,4300.8,33.737]
[1756777008369,0.3032,4300.9,4300.8,33.496]
[1756777008770,0.3032,4300.9,4300.8,33.736]
[1756777008973,0.3032,4300.9,4300.8,33.496]
[1756777009168,0.3032,4300.9,4300.8,33.736]
[1756777010872,0.3032,4300.9,4300.8,36.53621292]
[1756777011473,0.3032,4300.9,4300.8,36.29621292]
[1756777011666,0.3032,4300.9,4300.8,36.53621292]
[1756777014769,0.3032,4300.9,4300.8,33.496]
[1756777014979,0.3032,4300.9,4300.8,33.736]
[1756777017686,0.3032,4300.9,4300.8,33.496]
[1756777017883,0.3032,4300.9,4300.8,33.736]
[1756777018289,0.3032,4300.9,4300.8,36.53621292]
[1756777019300,0.3032,4301.6,4300.8,36.53621292]
[1756777019600,0.3032,4301.8,4300.9,6.24801292]
[1756777019793,3.2078,4301.9,4300.9,6.24801292]
[1756777020092,0.3032,4301.8,4300.9,6.24801292]
[1756777020493,3.2078,4301.9,4300.9,6.00801292]
[1756777020692,0.2061,4301.1,4301.0,0.24]
[1756777020890,0.3032,4301.0,4300.9,2.80021292]
[1756777021102,0.5093,4301.0,4300.9,3.04021292]
[1756777021499,0.8298,4301.0,4300.9,3.04021292]
[1756777021690,0.5093,4301.0,4300.9,3.04021292]
[1756777021897,0.3032,4301.0,4300.9,3.04021292]
[1756777022193,0.5093,4301.8,4300.9,3.04021292]
[1756777022794,0.2061,4301.7,4300.9,3.04021292]
[1756777023100,0.3032,4300.9,4300.8,33.496]
[1756777023302,0.3032,4300.9,4300.8,33.736]
[1756777023604,0.3032,4300.9,4300.8,34.56078681]
[1756777029108,0.3032,4300.9,4300.8,34.32078681]
[1756777029605,0.3032,4300.9,4300.8,34.56078681]
[1756777030303,0.3032,4300.9,4300.8,1.06478681]
[1756777030606,0.5093,4300.9,4300.8,1.06478681]
[1756777031106,0.7127,4300.9,4300.8,1.06478681]
[1756777034707,0.3032,4300.9,4300.8,1.06478681]
[1756777035105,0.5061,4300.9,4300.8,1.06478681]
[1756777035308,3.2078,4301.4,4300.8,1.06478681]
[1756777035514,3.9196,4301.4,4301.3,0.82478681]
[1756777035815,3.9196,4301.4,4301.3,0.239]
[1756777036011,3.9196,4301.4,4301.3,1.06378681]
[1756777036508,3.2078,4301.9,4301.3,1.06378681]
[1756777036705,0.3076,4301.9,4301.8,0.82478681]
[1756777036908,3.2078,4302.4,4301.8,4.27158681]
[1756777036909,3.4107,4302.4,4301.8,4.27158681]
[1756777037103,3.331,4303.0,4301.8,3.4468]
[1756777037408,0.2029,4302.3,4301.8,3.4468]
[1756777037610,0.3076,4302.1,4301.8,3.4468]
[1756777037815,0.7118,4301.9,4301.2,40.8]
[1756777038116,0.3076,4301.8,4301.3,0.239]
[1756777038411,0.3076,4301.8,4301.7,0.82478681]
[1756777038613,0.3076,4301.8,4301.7,1.06478681]
[1756777039116,0.5105,4301.8,4301.7,1.06478681]
[1756777039408,0.5105,4301.8,4301.7,1.21034031]
[1756777039608,0.3076,4301.8,4301.7,1.21034031]
[1756777040408,0.5105,4301.8,4301.7,1.21034031]
[1756777040608,0.7118,4301.8,4301.7,1.21034031]
[1756777042712,0.3076,4301.7,4301.6,0.239]
[1756777042913,0.7118,4301.7,4301.6,0.239]
[1756777045912,3.2078,4301.9,4301.6,0.239]
[1756777046214,3.5154,4301.9,4301.8,0.97034031]
[1756777046414,0.3076,4301.9,4301.8,0.97034031]
[1756777049015,0.5105,4301.9,4301.8,0.97034031]
[1756777050614,0.3076,4301.8,4301.2,0.97034031]
[1756777050815,0.5105,4301.3,4301.0,3.2078]
[1756777051021,0.5105,4301.3,4301.2,0.97034031]
[1756777052214,0.3076,4301.3,4301.2,0.97034031]
[1756777052921,0.2029,4301.9,4301.2,0.97034031]
[1756777053122,0.1166,4302.5,4301.8,0.97034031]
[1756777053318,0.2029,4302.2,4302.1,0.97034031]
[1756777053522,0.4042,4302.2,4302.1,0.97034031]
[1756777053718,0.7118,4302.2,4302.1,0.97034031]
[1756777054220,0.5274,4302.0,4301.9,0.239]
[1756777054421,0.835,4302.0,4301.8,0.97034031]
[1756777054718,0.835,4302.0,4301.9,0.239]
[1756777055816,0.5274,4302.0,4301.9,0.239]
[1756777056017,0.835,4302.0,4301.9,0.239]
[1756777056224,0.3076,4301.9,4301.8,0.97034031]
[1756777056516,0.5105,4301.9,4301.8,1.20934031]
[1756777056713,0.3076,4301.9,4301.8,1.20934031]
[1756777056928,0.5105,4302.4,4301.8,1.20934031]
[1756777057125,0.5105,4302.4,4302.3,0.97034031]
[1756777057325,0.7118,4302.4,4302.3,1.20934031]
[1756777058217,0.7118,4302.4,4302.3,0.239]
[1756777063619,0.7118,4302.4,4301.3,0.97034031]
[1756777063620,0.3007,4302.3,4301.3,0.97034031]
[1756777063817,0.3007,4302.3,4300.9,36.6938]
[1756777063818,0.6917,4301.7,4301.6,0.97034031]
[1756777071322,0.8161,4301.0,4300.9,36.6938]
[1756777071532,0.8161,4301.0,4300.9,33.486]
[1756777071729,0.391,4300.3,4300.2,3.2078]
[1756777071930,0.6917,4300.3,4300.2,3.2078]
[1756777072232,0.391,4299.8,4299.7,3.2078]
[1756777072434,0.6917,4299.8,4299.7,3.4468]
[1756777073126,0.5013,4299.8,4299.7,3.4468]
[1756777073324,0.6917,4299.8,4299.7,3.4468]
[1756777077230,0.391,4299.3,4299.2,3.2078]
[1756777077435,0.6917,4299.3,4299.2,3.4468]
[1756777077631,0.6917,4299.3,4298.2,2.0786816]
[1756777077632,0.3007,4299.2,4298.2,2.0786816]
[1756777077833,0.2006,4298.5,4298.3,1.20934031]
[1756777078040,0.5013,4298.4,4298.3,0.97034031]
[1756777078339,0.5013,4298.4,4298.3,1.20934031]
[1756777079431,0.6917,4298.4,4298.3,1.20934031]
[1756777080537,0.3007,4298.3,4298.1,0.97034031]
[1756777080737,0.6917,4298.3,4298.2,0.239]
[1756777081033,0.6917,4298.3,4298.1,0.97034031]
[1756777081232,0.6917,4298.3,4298.2,0.239]
[1756777081638,0.3007,4298.9,4298.2,0.239]
[1756777081833,0.5013,4298.9,4298.8,0.97034031]
[1756777082031,0.3007,4298.9,4298.8,1.20934031]
[1756777082241,0.5013,4298.9,4298.8,1.20934031]
[1756777083438,0.6917,4298.9,4298.8,0.239]
[1756777084141,0.3007,4298.2,4298.1,4.17814031]
[1756777084336,0.6917,4298.2,4298.1,4.41714031]
[1756777084537,0.6917,4298.2,4297.7,40.8]
[1756777084538,0.391,4298.2,4297.7,40.8]
[1756777084738,0.1244,4298.5,4297.8,1.20934031]
[1756777084739,0.325,4298.0,4297.8,1.20934031]
[1756777084938,0.5013,4297.9,4297.8,1.20934031]
[1756777086645,0.5013,4298.5,4297.8,1.44201031]
[1756777086839,0.5013,4298.5,4298.4,0.97034031]
[1756777087036,0.5013,4298.5,4298.4,1.20934031]
[1756777088146,3.2078,4299.6,4298.4,1.20934031]
[1756777088350,0.5013,4299.4,4298.6,3.2078]
[1756777088647,0.6917,4299.4,4299.3,0.97034031]
[1756777088847,0.6917,4299.4,4299.3,1.20934031]
[1756777089548,0.3007,4299.9,4299.3,0.239]
[1756777089744,0.3007,4299.8,4299.4,0.239]
[1756777089949,0.8161,4299.5,4299.4,0.239]
[1756777091854,0.8161,4299.5,4299.2,3.2078]
[1756777092050,0.3051,4299.4,4299.3,0.239]
[1756777093056,0.3051,4299.9,4299.3,0.239]
[1756777093252,0.3051,4300.1,4299.8,3.26466831]
[1756777093450,3.2078,4300.2,4299.9,0.239]
[1756777093649,3.2078,4300.2,4299.9,41.039]
[1756777094049,3.5129,4300.2,4299.9,41.039]
[1756777094651,3.5129,4300.2,4299.9,44.30366831]
[1756777095251,0.3051,4300.2,4299.9,47.51146831]
[1756777095446,0.3051,4300.8,4300.0,0.23256]
[1756777095647,0.3051,4300.8,4300.6,3.26466831]
[1756777095851,0.3051,4300.8,4300.7,0.239]
[1756777096558,3.3335,4301.5,4300.7,0.239]
[1756777096758,0.3051,4301.3,4301.2,3.26466831]
[1756777096954,0.3954,4301.3,4300.7,3.26466831]
[1756777097154,0.203,4300.9,4300.8,0.239]
[1756777097355,0.3051,4301.4,4300.8,0.239]
[1756777097861,0.5081,4301.4,4300.8,0.239]
[1756777098752,0.3051,4301.8,4301.2,3.26466831]
[1756777098958,0.5081,4302.4,4301.7,6.47246831]
[1756777099154,0.3051,4302.3,4302.2,3.26466831]
[1756777099359,0.7005,4302.3,4302.2,0.239]
[1756777101265,0.3954,4302.3,4301.7,6.47246831]
[1756777101451,0.5081,4302.1,4301.8,0.239]
[1756777101651,0.203,4302.1,4302.0,2.92922568]
[1756777101858,0.203,4302.1,4302.0,3.16822568]
[1756777102057,0.203,4302.1,4302.0,2.92922568]
[1756777102264,0.5081,4302.1,4302.0,3.16822568]
[1756777103762,0.3051,4302.1,4302.0,3.16822568]
[1756777104163,0.7005,4302.1,4302.0,0.239]
[1756777104358,0.7005,4302.1,4302.0,3.16822568]
[1756777107466,0.1257,4302.0,4300.1,33.501]
[1756777107671,0.7005,4300.9,4300.8,2.92922568]
[1756777107967,0.7005,4300.9,4300.8,3.16822568]
[1756777108365,0.3051,4301.2,4300.8,3.16822568]
[1756777108562,0.3051,4301.1,4300.8,3.16822568]
[1756777108767,0.7005,4301.1,4301.0,2.92922568]
[1756777108964,0.7005,4301.1,4301.0,3.16822568]
[1756777110873,0.7005,4301.1,4301.0,2.92922568]
[1756777111271,0.7005,4300.6,4300.1,33.501]
[1756777111570,0.8262,4300.0,4299.9,2.92922568]
[1756777111768,0.8262,4300.0,4299.9,3.16822568]
[1756777111969,0.8262,4299.5,4299.4,6.13702568]
[1756777112170,0.8262,4299.5,4299.4,6.37602568]
[1756777113970,0.7005,4299.5,4299.4,6.37602568]
[1756777114561,0.203,4300.0,4299.4,6.37602568]
[1756777114769,0.5081,4300.5,4299.9,6.13702568]
[1756777114963,0.3051,4300.5,4300.4,2.92922568]
[1756777115173,0.203,4300.6,4300.4,2.92922568]
[1756777115374,0.8262,4300.5,4300.4,3.16822568]
[1756777115572,0.8262,4300.5,4300.4,0.239]
[1756777116770,0.5211,4300.5,4299.9,2.92922568]
[1756777116969,0.5211,4300.5,4300.0,0.239]
[1756777117372,0.3051,4300.4,4300.0,3.4468]
[1756777117575,0.3051,4300.3,4300.0,3.4468]
[1756777117772,0.203,4300.4,4300.0,3.4468]
[1756777117976,0.3051,4300.3,4300.0,3.4468]
[1756777118365,0.1257,4300.5,4300.0,3.4468]
[1756777118565,0.5081,4300.4,4300.0,3.4468]
[1756777118774,0.3287,4300.5,4300.0,3.4468]
[1756777118978,0.6338,4300.5,4300.4,2.92922568]
[1756777119273,0.6338,4300.5,4300.4,3.16822568]
[1756777119472,0.3051,4300.7,4300.4,3.16822568]
[1756777119673,0.1257,4301.0,4300.4,3.16822568]
[1756777119674,0.3051,4300.9,4300.4,3.16822568]
[1756777119973,0.203,4300.6,4300.5,0.239]
[1756777120178,0.5081,4300.6,4300.5,0.239]
[1756777120367,0.7005,4300.6,4300.5,0.239]
[1756777122075,0.4324,4300.5,4300.4,2.92922568]
[1756777122379,0.5325,4300.0,4299.9,2.92922568]
[1756777122572,0.5325,4300.0,4299.9,3.16822568]
[1756777122771,0.8465,4300.0,4299.9,3.16822568]
[1756777124572,0.314,4300.0,4299.9,3.16822568]
[1756777124778,0.314,4300.6,4299.9,6.37602568]
[1756777124979,0.314,4300.6,4300.5,2.92922568]
[1756777125283,0.314,4300.6,4300.5,3.16822568]
[1756777125579,0.314,4301.3,4300.5,3.16822568]
[1756777125781,0.314,4301.3,4301.2,2.92922568]
[1756777126081,3.2078,4301.7,4301.2,3.16822568]
[1756777126082,0.314,4301.6,4301.2,3.16822568]
[1756777126278,0.2106,4301.6,4301.2,3.16822568]
[1756777126581,3.4184,4301.7,4301.2,3.16822568]
[1756777126877,0.314,4301.6,4301.2,3.16822568]
[1756777127783,0.2106,4301.6,4301.2,3.16822568]
[1756777127983,3.2078,4301.7,4301.2,3.16822568]
[1756777128185,0.314,4301.5,4301.2,3.16822568]
[1756777128380,3.4184,4301.7,4301.2,3.16822568]
[1756777128577,0.314,4301.6,4301.2,3.16822568]
[1756777128778,3.2078,4301.7,4301.2,3.16822568]
[1756777129083,0.7281,4300.9,4300.8,6.13702568]
[1756777129281,0.1184,4301.0,4299.9,2.0786816]
[1756777129482,0.7281,4300.3,4300.2,2.92922568]
[1756777129784,0.314,4300.3,4300.2,3.16822568]
[1756777130987,0.314,4300.9,4300.2,6.37602568]
[1756777131191,0.314,4300.9,4300.8,2.92922568]
[1756777131392,0.314,4300.9,4300.8,3.16822568]
[1756777132297,0.314,4300.9,4300.8,2.92922568]
[1756777132498,0.314,4300.9,4300.8,3.16822568]
[1756777132700,3.5218,4301.2,4300.8,3.16822568]
[1756777132998,0.314,4301.1,4300.8,3.16822568]
[1756777134989,3.2078,4301.2,4300.8,3.16822568]
[1756777135191,3.2078,4301.2,4300.8,2.92922568]
[1756777135394,3.2078,4301.2,4300.9,0.239]
[1756777135395,0.1184,4301.0,4300.9,0.239]
[1756777136490,0.4324,4301.0,4300.9,0.239]
[1756777138205,0.8465,4301.0,4300.9,0.239]
[1756777138892,0.5246,4301.0,4300.9,0.239]
[1756777139093,0.314,4301.0,4300.9,0.239]
[1756777139593,0.5325,4301.0,4300.3,2.92922568]
[1756777139792,0.5246,4300.4,4300.3,2.92922568]
[1756777139995,0.5246,4300.4,4300.3,3.16822568]
[1756777140298,0.7281,4300.4,4300.3,3.16822568]
[1756777140706,0.314,4300.4,4300.3,3.17042568]
[1756777141696,0.314,4300.9,4300.3,3.17042568]
[1756777141900,0.314,4301.2,4300.8,2.93142568]
[1756777142104,0.314,4301.2,4301.1,0.0022]
[1756777142298,0.5246,4301.2,4301.1,0.0022]
[1756777142700,0.5246,4301.2,4301.1,0.2412]
[1756777143004,0.7281,4301.2,4301.1,0.2401]
[1756777145497,0.7281,4301.2,4301.1,0.239]
[1756777147610,0.314,4301.2,4301.1,0.2412]
[1756777147800,0.314,4301.7,4301.1,0.2412]
[1756777147999,3.4184,4301.8,4301.7,0.0011]
[1756777148197,3.6219,4301.8,4301.7,0.239]
[1756777148399,3.6219,4301.8,4301.2,2.92922568]
[1756777148400,0.4141,4301.3,4301.2,2.92922568]
[1756777148601,0.4141,4301.3,4301.2,3.14022568]
[1756777148602,0.7281,4301.3,4301.2,3.14022568]
[1756777149106,0.4141,4301.3,4300.7,2.92922568]
[1756777149308,0.2106,4300.9,4300.8,0.239]
[1756777149502,0.5246,4300.9,4300.8,0.2401]
[1756777149912,0.5246,4300.9,4300.8,0.2412]
[1756777150604,0.314,4300.9,4300.8,0.2412]
[1756777150812,0.314,4301.4,4300.8,0.2412]
[1756777151010,0.314,4301.4,4301.3,2.93122568]
[1756777151308,0.314,4301.4,4301.3,3.17022568]
[1756777153907,0.7078,4301.4,4301.3,0.239]
[1756777154210,0.7078,4301.4,4300.8,6.13702568]
[1756777154512,0.706,4300.9,4300.8,6.13702568]
[1756777154811,0.706,4300.9,4300.8,6.37602568]
[1756777155111,0.706,4300.9,4300.8,6.37692568]
[1756777155802,0.706,4300.9,4300.8,6.37782568]
[1756777157612,0.1221,4301.0,4300.5,3.9]
[1756777157814,0.706,4300.9,4300.8,0.239]
[1756777159805,0.706,4300.9,4300.4,2.92922568]
[1756777160005,0.1905,4300.6,4300.5,0.2399]
[1756777160310,0.5027,4300.6,4300.5,0.2408]
[1756777161010,0.3122,4300.6,4300.5,0.2408]
[1756777161215,0.3122,4301.4,4300.5,0.2408]
[1756777161418,0.706,4301.4,4301.3,2.93012568]
[1756777161716,0.706,4301.4,4301.3,3.16822568]
[1756777163419,0.706,4301.4,4301.3,0.239]
[1756777163616,0.706,4301.4,4301.3,0.2399]
[1756777166418,0.706,4301.4,4301.3,0.239]
[1756777166816,0.706,4301.4,4300.8,6.47025768]
[1756777167018,0.5159,4301.0,4300.9,0.2399]
[1756777167220,0.8281,4301.0,4300.9,0.0009]
[1756777167421,0.8281,4301.0,4300.9,0.2399]
[1756777167720,0.5159,4301.0,4300.9,0.239]
[1756777167919,0.8281,4301.0,4300.9,0.239]
[1756777169120,0.8281,4301.0,4300.9,0.2408]
[1756777169619,0.8281,4301.0,4300.9,0.239]
[1756777170024,0.8281,4301.0,4300.9,0.2399]
[1756777170418,0.3122,4301.0,4300.9,0.2408]
[1756777170614,0.3122,4301.4,4300.9,7.73576768]
[1756777170815,0.3122,4301.6,4300.9,3.50325768]
[1756777171123,0.3122,4301.6,4300.9,3.73574768]
[1756777172534,0.1221,4301.5,4300.9,3.73574768]
[1756777172728,0.3122,4301.4,4300.9,3.50325768]
[1756777173026,0.1221,4301.5,4300.9,3.50325768]
[1756777173223,0.3122,4301.4,4300.9,3.50325768]
[1756777173823,0.1221,4301.5,4300.9,3.50325768]
[1756777174323,0.3122,4301.4,4300.9,3.50325768]
[1756777174922,0.1184,4302.5,4301.6,0.0018]
[1756777174923,0.3122,4302.4,4301.6,0.0018]
[1756777175127,0.706,4302.4,4302.3,0.0009]
[1756777175325,0.706,4302.4,4302.3,0.239]
[1756777175721,0.90314282,4302.4,4302.3,0.239]
[1756777177333,0.3122,4302.3,4302.1,3.26245768]
[1756777177528,0.706,4302.3,4302.2,0.239]
[1756777177729,0.1221,4302.0,4301.8,3.2078]
[1756777177929,0.706,4301.4,4301.3,3.2087]
[1756777178231,0.90297033,4301.4,4301.3,3.4477]
[1756777179235,0.90297033,4301.4,4300.9,2.0786816]
[1756777179531,0.5027,4301.1,4301.0,41.039]
[1756777179832,0.69967033,4301.1,4301.0,41.039]
[1756777181834,0.69967033,4301.1,4301.0,40.8]
[1756777182129,0.5123,4300.8,4300.7,3.26245768]
[1756777182328,0.49887033,4300.8,4300.7,3.50145768]
[1756777185436,0.49887033,4300.8,4300.7,4.41736126]
[1756777188348,0.3019,4300.8,4300.7,4.41736126]
[1756777188549,0.49883507,4300.8,4300.7,4.41736126]
[1756777188848,0.3019,4300.8,4300.7,4.41736126]
[1756777189150,0.49884233,4300.8,4300.7,4.41736126]
[1756777189746,0.19694233,4300.8,4300.7,4.41736126]
[1756777189949,3.2078,4301.9,4300.7,9.62044252]
[1756777189950,0.5123,4301.8,4300.7,9.62044252]
[1756777190253,0.5123,4301.8,4301.7,0.97056126]
[1756777190552,0.3019,4301.8,4301.7,1.20956126]
[1756777191250,0.3019,4302.1,4301.7,1.20956126]
[1756777191456,3.2078,4303.0,4302.5,0.3009]
[1756777191753,3.6132,4303.0,4302.9,1.37796126]
[1756777191954,3.6132,4303.0,4302.9,1.61696126]
[1756777192861,3.6132,4303.0,4302.9,1.91786126]
[1756777193345,3.9151,4303.0,4302.9,1.91786126]
[1756777193547,3.9151,4303.0,4302.9,1.61696126]
[1756777193848,0.7073,4302.8,4302.7,0.97056126]
[1756777194049,0.7073,4302.8,4302.7,1.61696126]
[1756777195656,0.1252,4303.5,4302.7,2.64942252]
[1756777195954,0.5123,4302.8,4302.7,2.64942252]
[1756777196357,0.5123,4302.8,4302.7,2.88842252]
[1756777197058,0.0039566,4304.3,4304.1,0.3009]
[1756777197258,3.2078,4304.7,4304.2,2.18012252]
[1756777197559,3.2078,4304.7,4304.6,0.7083]
[1756777197758,3.9151,4304.7,4304.6,0.4074]
[1756777198058,3.9151,4304.7,4304.6,0.6464]
[1756777198455,0.7073,4304.7,4304.6,0.6464]
[1756777200160,0.7073,4304.7,4304.6,0.4074]
[1756777200359,0.7073,4304.7,4303.9,3.2078]
[1756777200360,0.4054,4304.4,4303.9,3.2078]
[1756777200566,0.8325,4304.0,4303.9,3.2078]
[1756777200863,0.8325,4304.0,4303.9,3.4468]
[1756777202159,0.8325,4304.0,4303.9,0.239]
[1756777202662,0.7073,4304.0,4303.9,0.4369]
[1756777202859,0.7073,4304.0,4303.9,0.239]
[1756777203064,1.03762543,4304.0,4303.9,0.239]
[1756777203359,0.8325,4304.0,4303.9,0.239]
[1756777207166,0.7073,4304.0,4303.9,3.90312006]
[1756777207466,3.2078,4304.7,4304.5,0.4074]
[1756777207467,0.5123,4304.6,4304.5,0.4074]
[1756777207661,0.20494535,4304.6,4304.5,4.20452006]
[1756777207965,3.2078,4304.7,4304.6,0.7088]
[1756777208161,0.3019,4305.2,4304.6,0.7088]
[1756777208362,0.5123,4305.2,4305.1,3.66412006]
[1756777208662,0.3019,4305.7,4305.1,4.20452006]
[1756777209858,0.3019,4305.9,4305.1,4.20452006]
[1756777210059,0.7073,4305.2,4305.1,3.66412006]
[1756777210264,0.7073,4305.2,4305.1,3.90312006]
[1756777210464,0.7073,4305.2,4305.1,3.69362006]
[1756777212566,0.3134,4305.1,4304.8,40.8]
[1756777212764,0.5242,4304.1,4304.0,3.66862006]
[1756777213065,0.7171,4304.1,4304.0,3.66862006]
[1756777213258,0.7171,4304.1,4304.0,3.90762006]
[1756777213855,0.7171,4304.1,4304.0,3.66862006]
[1756777214063,0.5242,4304.1,4304.0,4.19662006]
[1756777219962,0.3134,4304.8,4304.0,4.19662006]
[1756777220166,0.20534875,4304.7,4304.6,3.95762006]
[1756777220368,0.20534875,4304.7,4304.6,4.19662006]
[1756777221272,0.72954875,4304.7,4304.6,4.19662006]
[1756777225170,0.20534875,4304.7,4304.6,4.19662006]
[1756777225567,0.20534875,4304.7,4304.6,3.86554697]
[1756777227562,0.72954875,4304.7,4304.6,3.62654697]
[1756777227767,0.72954875,4304.7,4304.6,3.86554697]
[1756777228974,3.2078,4305.5,4305.4,0.4119]
[1756777229169,3.2078,4305.5,4305.4,3.86554697]
[1756777229567,3.2078,4305.5,4305.4,3.62654697]
[1756777229765,3.5212,4305.5,4305.4,3.86554697]
[1756777229973,3.2078,4305.5,4305.4,3.86554697]
[1756777230580,3.732,4305.5,4305.4,3.86554697]
[1756777231773,3.732,4305.5,4305.4,3.62654697]
[1756777231979,3.9249,4305.5,4305.4,3.57654697]
[1756777232275,0.3134,4304.8,4304.3,3.2078]
[1756777232480,0.5242,4304.4,4304.3,3.6197]
[1756777232672,0.5242,4304.4,4304.3,44.6587]
[1756777233173,0.7171,4304.4,4304.3,3.8587]
[1756777234578,0.7171,4304.4,4304.3,3.6525]
[1756777234978,0.7171,4304.4,4304.3,3.4468]
[1756777235274,0.7171,4304.4,4304.3,3.6525]
[1756777235979,0.7171,4304.4,4304.3,3.8587]
[1756777238182,0.7171,4304.4,4304.3,0.4119]
[1756777238381,0.7171,4304.4,4304.3,0.6509]
[1756777239381,0.7171,4304.4,4304.3,0.9399]
[1756777239880,0.7171,4304.4,4304.3,0.6509]
[1756777240980,0.9509156,4304.4,4304.3,0.6509]
[1756777242679,0.2338156,4304.4,4304.3,4.1603]
[1756777247085,0.20168214,4304.4,4304.3,3.8587]
[1756777247382,0.20168214,4304.4,4304.3,4.1603]
[1756777247582,0.20168214,4304.4,4304.3,5.80676632]
[1756777249482,0.70458214,4304.4,4304.3,3.9093]
[1756777249685,0.70458214,4304.4,4304.3,5.55576632]
[1756777249886,0.70458214,4304.4,4304.3,5.79376632]
[1756777250390,0.20168214,4304.4,4304.3,5.79376632]
[1756777250893,0.22373082,4304.4,4304.3,5.79376632]
[1756777251393,0.22372104,4304.4,4304.3,5.79376632]
[1756777251690,0.53293085,4304.4,4304.3,5.79376632]
[1756777252287,0.3092,4304.3,4303.8,40.8]
[1756777252588,0.6956,4304.0,4303.9,0.6406]
[1756777252793,0.91933085,4304.0,4303.9,0.6406]
[1756777253291,0.91933085,4304.0,4303.9,0.4026]
[1756777253491,0.3864,4303.8,4303.7,0.82323316]
[1756777253687,0.61013085,4303.8,4303.7,0.238]
[1756777253993,0.84249085,4303.8,4303.7,0.238]
[1756777254292,0.91933085,4303.8,4303.7,0.238]
[1756777254997,0.91312817,4303.8,4303.7,1.46383316]
[1756777255191,0.91312817,4303.8,4303.7,1.76543316]
[1756777255381,0.21752817,4303.8,4303.7,0.9422]
[1756777255589,0.21752817,4303.8,4303.7,3.86833741]
[1756777255981,0.21752817,4303.8,4303.7,44.66833741]
[1756777259993,0.21752817,4303.8,4303.7,48.66833741]
[1756777260194,0.3092,4304.7,4304.6,0.4026]
[1756777260489,0.3092,4304.6,4304.3,3.2078]
[1756777260689,3.3295,4305.0,4304.4,0.238]